bitfinex/quotes_SOLUSD_20250915
["timestamp","ask_amount","ask_price","bid_price","bid_amount"]
[1757952103638,44.89686351,233.08,233.07,1e-08]
[1757952103826,44.20686351,233.08,233.07,1e-08]
[1757952105543,44.89686351,233.08,233.07,1e-08]
[1757952105915,44.20686351,233.08,233.07,1e-08]
[1757952107144,44.89686351,233.08,233.07,1e-08]
[1757952107348,44.20686351,233.08,233.07,1e-08]
[1757952110751,44.89686351,233.08,233.07,1e-08]
[1757952113923,44.20686351,233.08,233.07,1e-08]
[1757952114942,44.89686351,233.08,233.07,1e-08]
[1757952115737,44.92686351,233.08,233.07,1e-08]
[1757952117661,39.59559401,233.05,233.04,1e-08]
[1757952117835,39.91649111,233.05,233.04,1e-08]
[1757952118037,40.61649111,233.05,233.04,1e-08]
[1757952119661,44.9074158,233.05,233.04,1e-08]
[1757952120230,44.2074158,233.05,233.04,0.66000001]
[1757952121356,44.2074158,233.05,233.04,1e-08]
[1757952121539,44.2074158,233.05,233.04,0.66000001]
[1757952122250,13.59559401,233.05,233.04,0.66000001]
[1757952122453,17.8865187,233.05,233.04,0.66000001]
[1757952122956,18.2074158,233.05,233.04,0.66000001]
[1757952124059,17.8865187,233.05,233.04,0.66000001]
[1757952124637,43.8865187,233.05,233.04,0.66000001]
[1757952125155,39.59559401,233.05,233.04,0.66000001]
[1757952125330,0.03,233.08,233.04,0.66000001]
[1757952125746,26.0,233.06,233.04,0.66000001]
[1757952126148,0.03,233.08,233.04,4.95109353]
[1757952126350,0.03,233.08,233.04,0.66000001]
[1757952126560,4.32047875,233.08,233.05,0.66]
[1757952126965,26.0,233.07,233.06,0.66]
[1757952127130,13.59559401,233.06,233.04,1e-08]
[1757952127336,39.91649111,233.05,233.04,1e-08]
[1757952127563,40.63649111,233.05,233.04,1e-08]
[1757952128253,44.9274158,233.05,233.04,1e-08]
[1757952130543,39.59559401,233.01,233.0,1e-08]
[1757952130742,13.59559401,232.96,232.93,0.86]
[1757952130948,0.3208971,232.95,232.93,0.2]
[1757952131155,0.3208971,232.95,232.93,0.86]
[1757952131361,14.32306775,232.96,232.93,0.86]
[1757952131734,10.91649111,232.96,232.93,0.86]
[1757952132154,4.29276668,232.95,232.93,0.2]
[1757952132353,5.01276668,232.95,232.93,0.2]
[1757952132863,26.0,232.94,232.93,0.2]
[1757952133066,0.72,232.94,232.93,1e-08]
[1757952133363,40.31559401,232.94,232.93,1e-08]
[1757952133563,39.59559401,232.94,232.93,1e-08]
[1757952133945,13.59559401,232.94,232.93,0.66000001]
[1757952134144,43.88854498,232.94,232.93,0.66000001]
[1757952134341,43.88854498,232.94,232.93,1e-08]
[1757952134559,39.59559401,232.94,232.93,0.66000001]
[1757952135143,43.88854498,232.94,232.93,0.66000001]
[1757952136357,26.0,232.94,232.93,0.66000001]
[1757952136560,30.29295097,232.94,232.93,0.66000001]
[1757952136961,26.0,232.94,232.93,0.66000001]
[1757952137363,136.59259544,232.96,232.93,0.66000001]
[1757952137543,132.3,232.96,232.93,0.66000001]
[1757952137866,13.59559401,233.01,232.95,3.0992513]
[1757952138050,13.59559401,233.01,232.96,0.66]
[1757952138248,13.59559401,233.01,232.96,3.7592513]
[1757952138453,17.88727894,233.01,232.97,0.66]
[1757952138766,26.0,232.98,232.95,0.66]
[1757952139156,13.59559401,233.02,232.95,3.7592513]
[1757952139357,13.59559401,233.02,232.97,3.0992513]
[1757952139569,136.59133212,233.03,232.98,0.66]
[1757952139753,158.3,233.03,232.98,0.66]
[1757952140270,13.59559401,233.06,232.99,3.0992513]
[1757952140642,39.59559401,233.06,233.0,0.66]
[1757952141074,43.88633459,233.06,233.0,0.66]
[1757952141281,13.59559401,233.06,233.0,3.7592513]
[1757952141446,0.03,233.07,233.01,3.7592513]
[1757952141866,0.03,233.07,233.02,0.66]
[1757952142065,0.03,233.07,233.03,3.0992513]
[1757952142549,0.03,233.07,233.04,0.66]
[1757952142744,0.03,233.07,232.94,0.42929509]
[1757952142745,13.59559401,233.05,233.0,0.66]
[1757952142949,26.0,233.02,232.97,0.66]
[1757952143166,13.59559401,233.01,232.94,0.66]
[1757952143744,26.0,233.02,232.94,0.66]
[1757952144066,26.0,233.02,232.95,3.0992513]
[1757952144245,26.0,233.02,232.96,0.66]
[1757952144445,30.29155327,233.02,232.96,0.66]
[1757952145049,14.31559401,233.01,232.93,0.66000001]
[1757952145885,26.0,232.98,232.93,0.66000001]
[1757952146249,13.59559401,233.03,232.94,0.66]
[1757952146560,26.0,233.0,232.94,3.7592513]
[1757952146747,39.59559401,233.03,232.95,0.66]
[1757952146947,39.59559401,233.03,232.95,3.7592513]
[1757952147274,13.59559401,233.06,232.97,3.0992513]
[1757952147488,14.31559401,233.06,232.97,3.0992513]
[1757952147650,4.29092469,233.05,232.97,3.7592513]
[1757952147973,13.59559401,233.02,232.97,0.66]
[1757952148171,13.59559401,233.02,232.98,0.66]
[1757952148471,17.88713656,233.02,232.98,0.66]
[1757952148884,13.59559401,233.02,232.98,0.66]
[1757952149367,17.88709521,233.02,232.96,3.7592513]
[1757952149574,0.72,233.01,232.93,0.66000001]
[1757952149762,13.59559401,232.98,232.93,1e-08]
[1757952150249,4.29239816,232.97,232.94,0.66]
[1757952151271,145.89559401,232.98,232.94,0.66]
[1757952151449,150.18782926,232.98,232.94,0.66]
[1757952151650,150.18782926,232.98,232.93,1e-08]
[1757952151851,136.59223525,232.98,232.93,0.72000001]
[1757952152157,137.31223525,232.98,232.93,0.72000001]
[1757952152363,137.31223525,232.98,232.93,1e-08]
[1757952152755,132.3,232.98,232.94,0.72]
[1757952153855,132.3,232.98,232.95,0.72]
[1757952154076,132.3,232.98,232.96,0.72]
[1757952154458,132.33,232.98,232.94,3.8192513]
[1757952154657,132.33,232.98,232.95,0.72]
[1757952155366,132.33,232.98,232.94,3.0992513]
[1757952155570,132.33,232.98,232.94,3.8192513]
[1757952155772,132.33,232.98,232.94,3.0992513]
[1757952155965,132.33,232.98,232.95,0.72]
[1757952156477,132.33,232.98,232.95,5.01272497]
[1757952156876,132.33,232.98,232.93,1e-08]
[1757952157077,0.72,232.97,232.93,1e-08]
[1757952157278,13.59559401,232.96,232.93,1e-08]
[1757952157658,26.0,232.94,232.93,1e-08]
[1757952158277,44.60854498,232.94,232.93,1e-08]
[1757952160574,40.31559401,232.94,232.93,1e-08]
[1757952160763,44.60854498,232.94,232.93,1e-08]
[1757952165285,43.88854498,232.94,232.93,1e-08]
[1757952165468,39.62559401,232.98,232.93,0.72000001]
[1757952165673,13.62559401,232.98,232.94,3.8192513]
[1757952165977,0.03,232.98,232.95,0.72]
[1757952166191,13.62559401,232.98,232.95,0.72]
[1757952166367,13.62559401,232.98,232.94,37.3392513]
[1757952166562,17.91782037,232.98,232.93,1e-08]
[1757952166762,13.59559401,232.96,232.94,19.2]
[1757952167388,39.59559401,232.94,232.93,1e-08]
[1757952167890,40.31559401,232.94,232.93,1e-08]
[1757952168397,44.60854498,232.94,232.93,1e-08]
[1757952171985,43.88854498,232.94,232.93,1e-08]
[1757952173896,44.60854498,232.94,232.93,1e-08]
[1757952174230,43.88854498,232.94,232.93,1e-08]
[1757952174767,44.60854498,232.94,232.93,1e-08]
[1757952175794,43.88854498,232.94,232.93,1e-08]
[1757952178109,43.88854498,232.94,232.93,0.68000001]
[1757952178305,39.59559401,232.94,232.93,1e-08]
[1757952179009,43.88854498,232.94,232.93,1e-08]
[1757952179429,0.03,232.98,232.93,0.68000001]
[1757952179632,13.62559401,232.98,232.94,3.0992513]
[1757952179923,13.62559401,232.98,232.95,34.88]
[1757952180096,0.03,232.98,232.96,0.68]
[1757952180294,0.03,232.98,232.97,3.0992513]
[1757952180520,0.03,232.98,232.96,3.7792513]
[1757952180726,0.03,232.98,232.97,3.0992513]
[1757952180910,0.03,232.98,232.97,3.7792513]
[1757952181753,0.03,232.98,232.97,34.88]
[1757952181893,0.03,232.98,232.95,0.68]
[1757952182094,0.03,232.98,232.96,34.2]
[1757952182299,0.03,232.98,232.96,34.88]
[1757952183820,0.03,232.98,232.97,34.88]
[1757952184116,0.03,232.98,232.97,39.17239816]
[1757952184423,0.03,232.98,232.97,34.88]
[1757952184918,0.03,232.98,232.97,39.17239816]
[1757952185096,0.03,232.98,232.97,34.88]
[1757952185512,0.03,232.98,232.93,1e-08]
[1757952185513,0.69,232.98,232.93,1e-08]
[1757952185723,0.66,232.97,232.94,34.2]
[1757952186115,4.29258241,232.96,232.94,34.2]
[1757952186918,4.29258241,232.96,232.93,1e-08]
[1757952187231,40.25559401,232.95,232.93,1e-08]
[1757952188425,43.88845731,232.95,232.93,1e-08]
[1757952188626,39.59559401,232.95,232.93,1e-08]
[1757952189015,44.54837293,232.95,232.93,1e-08]
[1757952190507,0.66,232.94,232.93,1e-08]
[1757952190809,18.54854498,232.94,232.93,1e-08]
[1757952191641,17.88854498,232.94,232.93,1e-08]
[1757952192019,18.54854498,232.94,232.93,1e-08]
[1757952192527,17.88854498,232.94,232.93,1e-08]
[1757952192840,18.54854498,232.94,232.93,1e-08]
[1757952194331,21.43651966,232.94,232.93,1e-08]
[1757952194833,18.54854498,232.94,232.93,1e-08]
[1757952195232,21.43651966,232.94,232.93,1e-08]
[1757952195534,18.54854498,232.94,232.93,1e-08]
[1757952195725,21.75772714,232.94,232.93,1e-08]
[1757952196119,24.64656447,232.94,232.93,1e-08]
[1757952198741,23.98656447,232.94,232.93,1e-08]
[1757952198916,17.88854498,232.94,232.93,0.68000001]
[1757952199115,17.88854498,232.94,232.93,1e-08]
[1757952199345,13.59559401,232.94,232.93,0.68000001]
[1757952199517,17.88854498,232.94,232.93,1e-08]
[1757952200415,17.88854498,232.94,232.93,0.68000001]
[1757952200416,13.59559401,232.94,232.93,0.68000001]
[1757952200637,13.59559401,232.95,232.93,0.68000001]
[1757952200838,17.88838241,232.95,232.93,0.68000001]
[1757952201040,17.88838241,232.95,232.93,1e-08]
[1757952201233,17.88838241,232.95,232.93,0.68000001]
[1757952201438,0.66,232.94,232.93,1e-08]
[1757952201633,40.25559401,232.94,232.93,1e-08]
[1757952202727,18.54854498,232.94,232.93,1e-08]
[1757952203842,21.43600374,232.94,232.93,1e-08]
[1757952204219,44.54854498,232.94,232.93,1e-08]
[1757952204423,21.43600374,232.94,232.93,1e-08]
[1757952204824,18.54854498,232.94,232.93,1e-08]
[1757952205024,21.43600374,232.94,232.93,1e-08]
[1757952205436,18.54854498,232.94,232.93,1e-08]
[1757952206135,44.54854498,232.94,232.93,1e-08]
[1757952206337,21.43600374,232.94,232.93,1e-08]
[1757952206538,44.54854498,232.94,232.93,1e-08]
[1757952206748,21.43600374,232.94,232.93,1e-08]
[1757952207049,13.59559401,232.91,232.9,1e-08]
[1757952207227,16.48305277,232.91,232.9,1e-08]
[1757952207425,0.66,232.91,232.9,1e-08]
[1757952207638,3.54745876,232.91,232.9,1e-08]
[1757952208228,7.84096268,232.91,232.9,1e-08]
[1757952208552,44.54909793,232.91,232.9,1e-08]
[1757952208727,47.43655669,232.91,232.9,1e-08]
[1757952211849,43.88909793,232.91,232.9,1e-08]
[1757952214443,44.57909793,232.91,232.9,1e-08]
[1757952216645,43.88909793,232.91,232.9,1e-08]
[1757952217830,43.88909793,232.91,232.9,0.72000001]
[1757952218322,43.88909793,232.91,232.9,1e-08]
[1757952219132,43.88909793,232.91,232.9,0.72000001]
[1757952219534,43.88909793,232.91,232.9,1e-08]
[1757952219932,43.88909793,232.91,232.9,0.72000001]
[1757952220940,43.88909793,232.91,232.9,1e-08]
[1757952222958,44.57909793,232.91,232.9,1e-08]
[1757952223544,43.88909793,232.91,232.9,1e-08]
[1757952224156,44.57909793,232.91,232.9,1e-08]
[1757952225349,43.88909793,232.91,232.9,1e-08]
[1757952226744,44.57909793,232.91,232.9,1e-08]
[1757952227459,43.88909793,232.91,232.9,1e-08]
[1757952228831,17.88909793,232.91,232.9,0.72000001]
[1757952229263,43.88909793,232.91,232.9,0.72000001]
[1757952230542,17.88909793,232.91,232.9,0.72000001]
[1757952230941,43.88909793,232.91,232.9,0.72000001]
[1757952231347,43.88909793,232.91,232.9,1e-08]
[1757952231960,43.88909793,232.91,232.9,0.72000001]
[1757952233765,13.59559401,232.93,232.9,0.72000001]
[1757952234056,0.03,232.94,232.9,6.99830864]
[1757952234542,0.03,232.94,232.91,0.7]
[1757952236151,0.03,232.94,232.9,1e-08]
[1757952236345,0.03,232.94,232.92,0.7]
[1757952236542,13.59559401,232.93,232.92,0.7]
[1757952236745,39.59559401,232.91,232.9,1e-08]
[1757952237743,43.88909793,232.91,232.9,1e-08]
[1757952239276,26.0,232.91,232.9,1e-08]
[1757952239438,26.0,232.91,232.9,0.70000001]
[1757952239858,30.29350392,232.91,232.9,0.70000001]
[1757952240363,43.88909793,232.91,232.9,0.70000001]
[1757952240553,44.54909793,232.91,232.9,1e-08]
[1757952240943,43.88909793,232.91,232.9,1e-08]
[1757952241841,43.88909793,232.91,232.9,0.69000001]
[1757952242647,43.88909793,232.91,232.9,1e-08]
[1757952244245,43.88909793,232.91,232.9,0.69000001]
[1757952245378,43.88909793,232.91,232.9,1e-08]
[1757952246476,43.91909793,232.91,232.9,1e-08]
[1757952246689,0.03,232.91,232.9,1e-08]
[1757952246968,0.03,232.91,232.9,2.67462883]
[1757952248657,0.03,232.91,232.9,1e-08]
[1757952249296,0.03,232.91,232.9,0.69000001]
[1757952250177,13.62559401,232.91,232.9,0.69000001]
[1757952250583,0.03,232.91,232.9,0.69000001]
[1757952251784,0.03,232.91,232.9,1e-08]
[1757952251962,13.62559401,232.91,232.9,1e-08]
[1757952252163,18.61909793,232.91,232.9,1e-08]
[1757952252763,17.91909793,232.91,232.9,1e-08]
[1757952253475,0.03,232.91,232.9,0.69000001]
[1757952256280,0.03,232.91,232.9,7.77446731]
[1757952256490,0.03,232.91,232.9,3.48077904]
[1757952256674,0.03,232.91,232.9,7.77446731]
[1757952257863,0.03,232.91,232.9,41.83446731]
[1757952258800,0.03,232.91,232.9,42.26383613]
[1757952259367,0.03,232.91,232.9,8.20383613]
[1757952259568,0.03,232.91,232.9,0.69000001]
[1757952259788,0.03,232.91,232.9,37.54077904]
[1757952260170,0.03,232.91,232.9,3.48077904]
[1757952260371,0.03,232.91,232.9,34.75000001]
[1757952261770,0.03,232.91,232.9,0.69000001]
[1757952262065,0.03,232.91,232.9,41.81446731]
[1757952262470,0.03,232.91,232.9,0.69000001]
[1757952262693,0.03,232.91,232.9,34.04000001]
[1757952264374,0.03,232.91,232.9,37.52077904]
[1757952264679,0.03,232.91,232.9,41.81446731]
[1757952271106,0.03,232.91,232.9,37.52077904]
[1757952271278,0.03,232.91,232.9,41.81446731]
[1757952272408,0.03,232.91,232.9,41.12446731]
[1757952272787,0.03,232.91,232.9,41.82446731]
[1757952273098,0.03,232.91,232.9,7.78446731]
[1757952273298,0.03,232.91,232.9,41.80446731]
[1757952273703,0.03,232.94,232.9,41.80446731]
[1757952273704,0.03,232.94,232.9,45.02461516]
[1757952273878,0.03,232.94,232.93,2.79077903]
[1757952274082,0.03,232.94,232.93,37.24009255]
[1757952274378,0.03,232.96,232.93,37.94009255]
[1757952274604,0.03,232.96,232.95,28.79077903]
[1757952274792,0.03,232.96,232.95,29.22005569]
[1757952274990,0.03,232.96,232.95,29.92005569]
[1757952275682,0.03,232.96,232.95,68.23282237]
[1757952276398,0.03,232.96,232.95,69.95254979]
[1757952276596,0.03,232.96,232.95,35.93254979]
[1757952276798,0.03,232.96,232.95,41.80354571]
[1757952277892,0.03,232.96,232.95,4.99276668]
[1757952278091,0.03,232.96,232.95,41.80354571]
[1757952278594,0.03,232.96,232.95,39.01276668]
[1757952279101,0.03,232.96,232.95,41.80354571]
[1757952279722,0.03,232.96,232.95,39.01276668]
[1757952280004,0.03,232.96,232.95,37.49077903]
[1757952280203,0.03,232.96,232.95,36.79077903]
[1757952281089,0.03,232.96,232.95,41.08354571]
[1757952281291,0.03,232.96,232.9,1e-08]
[1757952281292,0.69,232.96,232.9,1e-08]
[1757952281488,0.69,232.96,232.91,34.0]
[1757952281796,0.69,232.96,232.9,1e-08]
[1757952281797,0.66,232.95,232.9,1e-08]
[1757952281995,0.66,232.95,232.91,34.0]
[1757952282202,0.66,232.94,232.91,34.0]
[1757952282608,0.66,232.93,232.91,34.0]
[1757952282905,0.66,232.92,232.9,1e-08]
[1757952283084,4.29350392,232.91,232.9,1e-08]
[1757952283286,0.66,232.91,232.9,34.00000001]
[1757952284797,14.25559401,232.91,232.9,1e-08]
[1757952285103,18.54909793,232.91,232.9,34.00000001]
[1757952286704,18.57909793,232.91,232.9,34.00000001]
[1757952287583,18.57909793,232.91,232.9,1e-08]
[1757952287812,21.45169454,232.91,232.9,1e-08]
[1757952288113,18.57909793,232.91,232.9,1e-08]
[1757952288288,44.57909793,232.91,232.9,1e-08]
[1757952288493,18.57909793,232.91,232.9,1e-08]
[1757952291317,4.32350392,232.91,232.9,1e-08]
[1757952291509,0.03,232.91,232.9,1e-08]
[1757952291706,30.32350392,232.91,232.9,1e-08]
[1757952291922,26.03,232.91,232.9,1e-08]
[1757952292123,30.32350392,232.91,232.9,1e-08]
[1757952292327,30.98350392,232.91,232.9,1e-08]
[1757952293035,30.99350392,232.91,232.9,1e-08]
[1757952293734,30.32350392,232.91,232.9,1e-08]
[1757952293923,0.03,232.91,232.9,0.69000001]
[1757952294123,0.03,232.91,232.9,1e-08]
[1757952294429,0.7,232.91,232.9,1e-08]
[1757952294732,18.58909793,232.91,232.9,1e-08]
[1757952294934,39.59559401,232.89,232.88,1e-08]
[1757952295332,40.26559401,232.89,232.88,1e-08]
[1757952296040,44.55946665,232.89,232.88,1e-08]
[1757952296622,48.03616831,232.89,232.88,1e-08]
[1757952297222,12.48526355,232.91,232.88,1e-08]
[1757952297223,0.03,232.91,232.88,1e-08]
[1757952297424,0.03,232.91,232.88,34.69000001]
[1757952297829,4.32350853,232.91,232.88,34.69000001]
[1757952298032,0.03,232.91,232.89,0.69]
[1757952298244,0.03,232.91,232.9,0.69]
[1757952298436,0.03,232.91,232.9,3.48077903]
[1757952298641,0.03,232.91,232.9,0.69]
[1757952299326,0.03,232.91,232.9,34.69]
[1757952299524,0.03,232.91,232.88,1e-08]
[1757952299726,0.03,232.91,232.9,2.79077903]
[1757952300030,0.03,232.91,232.9,7.7744673]
[1757952300445,0.03,232.94,232.93,2.79077903]
[1757952300755,0.03,232.94,232.93,36.79077903]
[1757952300956,0.03,232.94,232.93,37.48077903]
[1757952301552,0.03,232.94,232.93,60.69]
[1757952301879,0.03,232.94,232.93,67.10059941]
[1757952302021,0.03,232.94,232.93,71.8230482]
[1757952302425,0.03,232.94,232.92,33.98]
[1757952303046,0.03,232.94,232.92,34.69]
[1757952303248,0.03,232.94,232.88,4.29396354]
[1757952303424,26.67,232.93,232.89,33.98]
[1757952303628,0.67,232.92,232.89,33.98]
[1757952303922,0.67,232.91,232.89,33.98]
[1757952304127,30.29343741,232.92,232.89,33.98]
[1757952304372,30.29343741,232.92,232.88,1e-08]
[1757952304550,26.0,232.92,232.9,0.06]
[1757952304845,4.96350392,232.91,232.9,0.06]
[1757952305053,18.55909793,232.91,232.9,0.06]
[1757952308465,20.28045349,232.91,232.9,0.06]
[1757952308637,4.29350392,232.91,232.9,0.06]
[1757952309430,4.96350392,232.91,232.9,0.06]
[1757952310978,4.29350392,232.91,232.9,0.06]
[1757952312739,0.03,232.94,232.9,0.77]
[1757952312740,26.03,232.94,232.9,0.77]
[1757952312978,0.03,232.94,232.9,0.06]
[1757952313180,0.67,232.93,232.91,33.98]
[1757952313677,26.0,232.93,232.91,33.98]
[1757952313978,26.0,232.93,232.9,0.06]
[1757952313979,13.59559401,232.91,232.9,0.06]
[1757952314483,14.26559401,232.91,232.9,0.06]
[1757952314662,13.59559401,232.91,232.9,0.06]
[1757952314870,0.67,232.91,232.9,0.06]
[1757952315692,14.26559401,232.91,232.9,0.06]
[1757952315860,18.55909793,232.91,232.9,0.06]
[1757952317056,18.55909793,232.91,232.85,0.06]
[1757952317057,39.59559401,232.86,232.85,0.06]
[1757952317278,39.59559401,232.86,232.76,10.98]
[1757952317584,26.0,232.81,232.76,11.69]
[1757952317768,26.0,232.81,232.77,0.71]
[1757952318174,26.0,232.81,232.78,0.71]
[1757952319259,30.29553264,232.8,232.75,0.71]
[1757952319482,30.29553264,232.8,232.77,33.98]
[1757952319683,30.29553264,232.8,232.77,34.69]
[1757952321182,26.0,232.8,232.77,34.69]
[1757952321881,26.0,232.81,232.78,0.71]
[1757952322073,26.0,232.81,232.7,4.29721053]
[1757952322271,160.3,232.81,232.75,0.71]
[1757952322479,164.5954834,232.81,232.76,33.98]
[1757952322678,164.5954834,232.81,232.77,0.71]
[1757952322864,164.5954834,232.81,232.77,0.77]
[1757952323065,164.5954834,232.81,232.77,0.06]
[1757952323379,175.33385374,232.81,232.77,0.77]
[1757952324590,0.67,232.8,232.77,0.06]
[1757952324886,134.3,232.79,232.77,34.04]
[1757952325472,134.3,232.79,232.78,0.71]
[1757952330220,134.97,232.79,232.77,0.06]
[1757952330500,134.97,232.79,232.78,34.0]
[1757952330788,139.26571716,232.79,232.77,0.06]
[1757952330991,165.26571716,232.79,232.77,34.04]
[1757952331689,165.26571716,232.79,232.77,0.06]
[1757952331900,165.26571716,232.79,232.77,34.04]
[1757952332276,40.27559401,232.78,232.77,0.06]
[1757952333294,40.27559401,232.78,232.74,0.06]
[1757952333295,39.59559401,232.75,232.74,0.06]
[1757952333674,40.27559401,232.75,232.74,0.06]
[1757952335172,4.29645542,232.75,232.74,0.06]
[1757952335586,26.0,232.75,232.74,0.74]
[1757952335911,40.27559401,232.75,232.74,0.06]
[1757952337593,13.59559401,232.74,232.72,0.06]
[1757952338203,40.27559401,232.73,232.72,0.06]
[1757952338991,14.27559401,232.73,232.72,0.06]
[1757952339482,26.0,232.7,232.62,10.56]
[1757952339687,26.0,232.7,232.55,4.3001505]
[1757952339688,13.59559401,232.68,232.55,4.3001505]
[1757952339897,26.0,232.63,232.56,36.46820484]
[1757952340082,26.0,232.63,232.56,34.68]
[1757952340399,26.0,232.63,232.57,0.68]
[1757952340795,26.0,232.63,232.56,34.0]
[1757952340796,26.68,232.62,232.53,0.68]
[1757952340997,26.68,232.62,232.54,34.0]
[1757952341292,26.0,232.62,232.55,0.68]
[1757952341499,4.29904131,232.61,232.55,0.68]
[1757952341893,0.68,232.6,232.51,0.68]
[1757952342198,4.29904131,232.61,232.52,35.78820484]
[1757952342401,4.29904131,232.61,232.53,2.46820484]
[1757952342578,4.29904131,232.61,232.54,0.68]
[1757952343000,4.97904131,232.61,232.54,0.68]
[1757952344088,15.72664459,232.61,232.54,0.68]
[1757952344407,4.97904131,232.61,232.54,0.68]
[1757952344608,15.72664459,232.61,232.54,0.68]
[1757952345379,4.97904131,232.61,232.54,0.68]
[1757952346381,134.3,232.6,232.54,0.68]
[1757952347313,134.3,232.59,232.54,0.68]
[1757952347521,134.98,232.59,232.54,0.68]
[1757952348384,4.29959583,232.58,232.54,0.68]
[1757952349095,4.29959583,232.58,232.52,35.78820484]
[1757952349096,4.97959583,232.58,232.52,36.46820484]
[1757952349607,4.97959583,232.58,232.52,34.68]
[1757952350111,0.68,232.58,232.52,38.98068062]
[1757952350498,0.68,232.58,232.52,4.98068062]
[1757952350702,4.29978071,232.57,232.53,34.0]
[1757952350901,4.29978071,232.57,232.53,34.68]
[1757952351209,4.29961121,232.58,232.54,34.0]
[1757952351808,0.68,232.57,232.54,34.0]
[1757952351993,4.29961121,232.58,232.54,34.0]
[1757952352197,4.29961121,232.58,232.54,34.68]
[1757952353296,134.3,232.59,232.55,0.68]
[1757952353799,138.59947383,232.59,232.54,34.0]
[1757952354120,138.59947383,232.59,232.55,0.68]
[1757952354303,138.59947383,232.59,232.54,34.68]
[1757952354505,138.59947383,232.59,232.55,0.68]
[1757952355225,138.59947383,232.59,232.54,34.0]
[1757952355226,0.72,232.58,232.54,34.0]
[1757952355395,138.59947383,232.59,232.54,34.68]
[1757952355595,0.72,232.58,232.54,34.0]
[1757952355795,4.29978071,232.57,232.54,34.0]
[1757952356516,4.2996172,232.58,232.54,34.68]
[1757952357314,5.0196172,232.58,232.54,34.0]
[1757952357690,4.2996172,232.58,232.54,34.68]
[1757952357886,138.59941744,232.59,232.55,0.68]
[1757952358091,0.72,232.58,232.51,0.68]
[1757952358313,13.59559401,232.57,232.52,34.0]
[1757952358501,0.72,232.56,232.52,34.0]
[1757952359005,26.0,232.54,232.46,0.68]
[1757952359318,26.72,232.54,232.47,34.0]
[1757952359515,26.72,232.54,232.48,0.68]
[1757952360007,4.30052036,232.53,232.51,0.06]
[1757952360220,13.59559401,232.52,232.51,0.06]
[1757952360396,14.31559401,232.52,232.51,0.06]
[1757952360791,14.31559401,232.52,232.37,0.68]
[1757952360792,13.59559401,232.44,232.37,0.68]
[1757952361321,14.31559401,232.44,232.37,0.68]
[1757952361491,34.02,232.5,232.37,2.46820484]
[1757952361706,26.72,232.47,232.38,2.46820484]
[1757952361899,26.0,232.43,232.39,4.30311114]
[1757952362093,26.0,232.43,232.39,5.01311114]
[1757952362290,26.0,232.43,232.39,0.71]
[1757952362705,26.0,232.43,232.4,0.71]
[1757952363201,26.0,232.43,232.38,6.09138077]
[1757952363399,26.0,232.43,232.39,0.71]
[1757952363707,0.7,232.42,232.37,34.02]
[1757952364021,26.0,232.43,232.38,0.71]
[1757952364197,26.0,232.43,232.37,38.32343745]
[1757952364198,26.0,232.43,232.39,0.71]
[1757952364404,31.00240186,232.43,232.37,4.30343745]
[1757952364598,135.0,232.46,232.38,36.51820484]
[1757952364804,0.7,232.45,232.37,1.78820484]
[1757952365005,164.60183651,232.46,232.38,0.71]
[1757952365006,161.0,232.46,232.38,0.71]
[1757952365717,165.30190472,232.46,232.38,0.71]
[1757952365920,31.00190472,232.46,232.38,0.71]
[1757952366122,31.00190472,232.46,232.38,5.01325053]
[1757952366325,31.00190472,232.46,232.38,6.80145537]